fUST/lending_fUST_20251115
["ID","MTS","AMOUNT","RATE_DAILY","PERIOD"]
[393979652,1763155745903,2031.06807,0.0002,2]
[393979653,1763155745936,1000.0,7.3e-05,2]
[393979654,1763155746397,1000.0,7.4e-05,2]
[393979655,1763155746680,1000.0,7.6e-05,2]
[393979656,1763155747032,1000.0,7.8e-05,2]
[393979657,1763155747311,1000.0,7.9e-05,2]
[393979658,1763155747595,1000.0,8.1e-05,2]
[393979659,1763155747913,1000.0,8.2e-05,2]
[393979660,1763155748263,968.94193,8.4e-05,2]
[393979661,1763155748287,31.05807,8.4e-05,2]
[393979662,1763155748587,1000.0,8.5e-05,2]
[393979663,1763155748844,1000.0,8.7e-05,2]
[393979664,1763155749793,1000.0,8.8e-05,2]
[393979665,1763155750171,1000.0,9e-05,2]
[393979666,1763155750504,1000.0,9.1e-05,2]
[393979667,1763155751449,1000.0,9.3e-05,2]
[393979668,1763155751819,1000.0,9.4e-05,2]
[393979669,1763155752402,1000.0,9.6e-05,2]
[393979670,1763155752686,1000.0,9.7e-05,2]
[393979671,1763155752994,968.95193,9.9e-05,2]
[393979672,1763155753018,31.04807,9.9e-05,2]
[393979673,1763155753374,1000.0,0.000101,2]
[393979674,1763155753553,1000.0,0.000102,2]
[393979675,1763155753826,1000.0,0.000104,2]
[393979676,1763155754101,1000.0,0.000105,2]
[393979677,1763155754404,1000.0,0.000107,2]
[393979678,1763155754683,1000.0,0.000108,2]
[393979679,1763155754960,1000.0,0.00011,2]
[393979680,1763155755226,1000.0,0.000111,2]
[393979681,1763155755539,1000.0,0.000113,2]
[393979682,1763155755769,968.96193,0.000114,2]
[393979683,1763155755790,31.03807,0.000114,2]
[393979684,1763155756064,1000.0,0.000116,2]
[393979685,1763155756343,1000.0,0.000117,2]
[393979686,1763155756617,1000.0,0.000119,2]
[393979687,1763155756880,1000.0,0.00012,2]
[393979688,1763155757789,1000.0,0.000122,2]
[393979689,1763155758121,1000.0,0.000123,2]
[393979690,1763155758389,1000.0,0.000125,2]
[393979691,1763155767924,2440.21620608,0.00019997,2]
[393979692,1763155776422,160.0,0.00032878,120]
[393979693,1763155795388,150.0,0.00019211,2]
[393979738,1763155814058,-150.0,0.0002,2]
[393979739,1763155814083,-150.0,0.00020087,2]
[393979740,1763155814105,-677.8978635,0.00020087,2]
[393979741,1763155814125,-7.1021365,0.00020087,2]
[393979801,1763155832195,-972.8978635,0.00020087,2]
[393979803,1763155832205,-150.0,0.00021,2]
[393979805,1763155832214,-2405.67172405,0.00022373,2]
[393979807,1763155832224,-755.22,0.00022412,3]
[393979809,1763155832233,-151.65,0.00022412,10]
[393979811,1763155832245,-758.29,0.00022412,10]
[393979813,1763155832253,-500.0,0.0002242,2]
[393979815,1763155832263,-500.0,0.0002242,2]
[393979816,1763155832272,-500.0,0.0002242,2]
[393979818,1763155832281,-500.0,0.0002242,2]
[393979820,1763155832290,-500.0,0.0002242,2]
[393979822,1763155832299,-500.0,0.0002242,2]
[393979824,1763155832308,-500.0,0.0002242,2]
[393979826,1763155832317,-500.0,0.0002242,2]
[393979828,1763155832326,-167.36712243,0.0002242,2]
[393979830,1763155832335,-500.0,0.0002242,2]
[393979832,1763155832345,-500.0,0.0002242,2]
[393979834,1763155832354,-500.0,0.0002242,2]
[393979835,1763155832363,-65.90958002,0.0002242,2]
[393979840,1763155832398,-434.09041998,0.0002242,2]
[393979842,1763155832407,-500.0,0.0002242,2]
[393979844,1763155832416,-500.0,0.0002242,2]
[393979846,1763155832425,-36.53542002,0.0002242,2]
[393979848,1763155832438,-163.46457998,0.0002242,2]
[393979850,1763155832447,-500.0,0.0002242,2]
[393979852,1763155832456,-287.05731274,0.0002242,2]
[393979883,1763155838152,-212.94268726,0.0002242,2]
[393979884,1763155838162,-500.0,0.0002242,2]
[393979885,1763155838172,-500.0,0.0002242,2]
[393979886,1763155838182,-500.0,0.0002242,2]
[393979887,1763155838194,-500.0,0.0002242,2]
[393979888,1763155838204,-500.0,0.0002242,2]
[393979889,1763155838215,-500.0,0.0002242,2]
[393979890,1763155838225,-500.0,0.0002242,2]
[393979891,1763155838235,-500.0,0.0002242,2]
[393979892,1763155838245,-500.0,0.0002242,2]
[393979893,1763155838255,-500.0,0.0002242,2]
[393979894,1763155838264,-500.0,0.0002242,2]
[393979895,1763155838275,-500.0,0.0002242,2]
[393979896,1763155838284,-500.0,0.0002242,2]
[393979897,1763155838294,-500.0,0.0002242,2]
[393979898,1763155838304,-500.0,0.0002242,2]
[393979899,1763155838313,-500.0,0.0002242,2]
[393979900,1763155838322,-500.0,0.0002242,2]
[393979901,1763155838331,-500.0,0.0002242,2]
[393979902,1763155838340,-500.0,0.0002242,2]
[393979903,1763155838349,-500.0,0.0002242,2]
[393979904,1763155838358,-500.0,0.0002242,2]
[393979905,1763155838368,-500.0,0.0002242,2]
[393979906,1763155838377,-500.0,0.0002242,2]
[393979907,1763155838386,-500.0,0.0002242,2]
[393979908,1763155838395,-500.0,0.0002242,2]
[393979909,1763155838405,-500.0,0.0002242,2]
[393979910,1763155838414,-500.0,0.0002242,2]
[393979911,1763155838423,-500.0,0.0002242,2]
[393979912,1763155838432,-500.0,0.0002242,2]
[393979913,1763155838443,-500.0,0.0002242,2]
[393979914,1763155838452,-500.0,0.0002242,2]
[393979915,1763155838460,-500.0,0.0002242,2]
[393979916,1763155838470,-500.0,0.0002242,2]
[393979917,1763155838481,-500.0,0.0002242,2]
[393979918,1763155838491,-500.0,0.0002242,2]
[393979919,1763155838500,-500.0,0.0002242,2]
[393979920,1763155838510,-500.0,0.0002242,2]
[393979921,1763155838520,-500.0,0.0002242,2]
[393979922,1763155838530,-382.90181321,0.0002242,2]
[393979923,1763155838540,-500.0,0.0002242,2]
[393979924,1763155838550,-500.0,0.0002242,2]
[393979925,1763155838562,-205289.30973395,0.00022422,2]
[393979926,1763155838574,-500.0,0.00022473,2]
[393979927,1763155838585,-154.84576558,0.00022473,2]
[393979928,1763155838599,-67.26106575,0.00022473,2]
[393979929,1763155838610,-255.16512179,0.00022473,2]
[393979930,1763155838638,-244.83487821,0.00022473,2]
[393979931,1763155838649,-500.0,0.00022473,2]
[393979932,1763155838659,-500.0,0.00022473,2]
[393979933,1763155838668,-500.0,0.00022473,2]
[393979934,1763155838678,-500.0,0.00022473,2]
[393979935,1763155838696,-500.0,0.00022473,2]
[393979936,1763155838706,-24432.57380452,0.00022498,2]
[393979981,1763155840323,-15641.440595,0.00022498,2]
[393979983,1763155840463,-3e-08,0.00022498,2]
[393979998,1763155844097,-30597.94396774,0.00022498,2]
[393979999,1763155844109,-569.28,0.00022523,2]
[393980000,1763155844120,-569.28,0.00022523,2]
[393980001,1763155844132,-569.28,0.00022523,2]
[393980002,1763155844145,-2987.10381459,0.00022523,2]
[393980003,1763155844260,-284.74940678,0.00022523,2]
[393980004,1763155844272,-252.84232159,0.00022527,2]
[393980005,1763155844745,-300.77767841,0.00022527,2]
[393980006,1763155844755,-553.62,0.00022527,2]
[393980007,1763155844764,-553.62,0.00022527,2]
[393980008,1763155844773,-553.62,0.00022527,2]
[393980009,1763155844782,-553.62,0.00022527,2]
[393980010,1763155844791,-2057.88,0.00022527,2]
[393980011,1763155844800,-2057.88,0.00022527,2]
[393980012,1763155844809,-2057.88,0.00022527,2]
[393980013,1763155844818,-2057.88,0.00022527,2]
[393980014,1763155844827,-2057.88,0.00022527,2]
[393980015,1763155844836,-500.0,0.00022527,2]
[393980016,1763155844846,-207.27809721,0.00022527,2]
[393980017,1763155844855,-553.62,0.00022528,2]
[393980018,1763155844864,-553.62,0.00022528,2]
[393980019,1763155844872,-553.62,0.00022528,2]
[393980020,1763155844881,-553.62,0.00022528,2]
[393980021,1763155844890,-2057.88,0.00022528,2]
[393980022,1763155844899,-796.98992538,0.00022528,2]
[393980025,1763155846609,-500.0,0.0002242,2]
[393980026,1763155846621,-500.0,0.0002242,2]
[393980027,1763155846630,-500.0,0.0002242,2]
[393980028,1763155846639,-500.0,0.0002242,2]
[393980029,1763155846648,-500.0,0.0002242,2]
[393980030,1763155846658,-500.0,0.0002242,2]
[393980031,1763155846667,-500.0,0.0002242,2]
[393980032,1763155846676,-500.0,0.0002242,2]
[393980033,1763155846685,-500.0,0.0002242,2]
[393980034,1763155846696,-500.0,0.0002242,2]
[393980035,1763155846706,-500.0,0.0002242,2]
[393980036,1763155846715,-500.0,0.0002242,2]
[393980037,1763155846724,-500.0,0.0002242,2]
[393980038,1763155846734,-500.0,0.0002242,2]
[393980039,1763155846743,-500.0,0.0002242,2]
[393980040,1763155846752,-500.0,0.0002242,2]
[393980041,1763155846762,-500.0,0.0002242,2]
[393980042,1763155846771,-500.0,0.0002242,2]
[393980043,1763155846780,-500.0,0.0002242,2]
[393980044,1763155846790,-500.0,0.0002242,2]
[393980045,1763155846799,-500.0,0.0002242,2]
[393980046,1763155846808,-500.0,0.0002242,2]
[393980047,1763155846818,-500.0,0.0002242,2]
[393980048,1763155846827,-500.0,0.0002242,2]
[393980049,1763155846836,-500.0,0.0002242,2]
[393980050,1763155846845,-500.0,0.0002242,2]
[393980051,1763155846855,-200.0,0.0002242,2]
[393980052,1763155846864,-500.0,0.0002242,2]
[393980053,1763155846873,-500.0,0.0002242,2]
[393980054,1763155846882,-500.0,0.0002242,2]
[393980055,1763155846891,-500.0,0.0002242,2]
[393980056,1763155846900,-500.0,0.0002242,2]
[393980057,1763155846910,-500.0,0.0002242,2]
[393980058,1763155846919,-500.0,0.0002242,2]
[393980059,1763155846932,-500.0,0.0002242,2]
[393980060,1763155846941,-74.471046,0.0002242,2]
[393980061,1763155847713,-425.528954,0.0002242,2]
[393980062,1763155847722,-500.0,0.0002242,2]
[393980063,1763155847732,-500.0,0.0002242,2]
[393980064,1763155847741,-500.0,0.0002242,2]
[393980065,1763155847750,-500.0,0.0002242,2]
[393980066,1763155847759,-128.002379,0.0002242,2]
[393980154,1763156241842,150.0,0.00019016,2]
[393980155,1763156307704,150.0,0.00019025,2]
[393980156,1763156373066,150.0,0.00018879,2]
[393980175,1763156396497,169.483255,0.00010387,2]
[393980176,1763156438731,150.0,0.00019133,2]
[393980177,1763156568823,150.0,0.0001899,2]
[393980178,1763156635080,150.0,0.00018896,2]
[393980179,1763156649129,-161.80230617,0.00019699,2]
[393980180,1763156649150,-373.73666351,0.000197,2]
[393980181,1763156652861,-170.11,0.000197,2]
[393980182,1763156672068,260.12887259,0.0001969,2]
[393980183,1763156702052,150.0,0.00018964,2]
[393980184,1763156710664,-385.20090939,0.000197,2]
[393980185,1763156710693,-963.0,0.00019778,2]
[393980186,1763156710724,-150.0,0.00019894,2]
[393980187,1763156710753,-150.0,0.0002,2]
[393980188,1763156710782,-300.0,0.00020434,2]
[393980189,1763156710811,-500.0,0.00020435,2]
[393980190,1763156710840,-500.0,0.00020435,2]
[393980191,1763156710872,-500.0,0.00020435,2]
[393980192,1763156710902,-500.0,0.00020435,2]
[393980193,1763156710937,-500.0,0.00020435,2]
[393980194,1763156710967,-464.80301592,0.00020435,2]
[393980195,1763156710997,-21.93540015,0.00020435,2]
[393980196,1763156711938,-130.13134908,0.00020435,2]
[393980197,1763156711969,-606.8199534,0.00020435,2]
[393980198,1763156712002,-500.0,0.00020435,2]
[393980199,1763156712030,-440.0,0.00020435,2]
[393980200,1763156712061,-500.0,0.00020435,2]
[393980201,1763156712093,-500.0,0.00020435,2]
[393980202,1763156712124,-500.0,0.00020435,2]
[393980203,1763156712154,-500.0,0.00020435,2]
[393980204,1763156712185,-500.0,0.00020435,2]
[393980205,1763156712218,-500.0,0.00020435,2]
[393980206,1763156712249,-146.10739504,0.00020435,2]
[393980207,1763156712654,-353.89260496,0.00020435,2]
[393980208,1763156712687,-500.0,0.00020435,2]
[393980209,1763156712718,-500.0,0.00020435,2]
[393980210,1763156712750,-500.0,0.00020435,2]
[393980211,1763156712782,-500.0,0.00020435,2]
[393980212,1763156712812,-500.0,0.00020435,2]
[393980213,1763156712844,-500.0,0.00020435,2]
[393980214,1763156712877,-500.0,0.00020435,2]
[393980215,1763156712909,-500.0,0.00020435,2]
[393980216,1763156712942,-500.0,0.00020435,2]
[393980217,1763156713009,-500.0,0.00020435,2]
[393980218,1763156713042,-500.0,0.00020435,2]
[393980219,1763156713075,-500.0,0.00020435,2]
[393980220,1763156713107,-500.0,0.00020435,2]
[393980221,1763156713138,-500.0,0.00020435,2]
[393980222,1763156713171,-500.0,0.00020435,2]
[393980223,1763156713207,-500.0,0.00020435,2]
[393980224,1763156713241,-500.0,0.00020435,2]
[393980225,1763156713273,-500.0,0.00020435,2]
[393980226,1763156713307,-500.0,0.00020435,2]
[393980227,1763156713509,-500.0,0.00020435,2]
[393980228,1763156713543,-584.21250977,0.00020435,2]
[393980229,1763156713575,-500.0,0.00020435,2]
[393980230,1763156713607,-500.0,0.00020435,2]
[393980231,1763156713644,-500.0,0.00020435,2]
[393980232,1763156713677,-500.0,0.00020435,2]
[393980233,1763156713708,-500.0,0.00020435,2]
[393980234,1763156713740,-500.0,0.00020435,2]
[393980235,1763156713772,-500.0,0.00020435,2]
[393980236,1763156713802,-331.58498046,0.00020435,2]
[393980237,1763156713992,-168.41501954,0.00020435,2]
[393980238,1763156714027,-500.0,0.00020435,2]
[393980239,1763156714060,-500.0,0.00020435,2]
[393980240,1763156714093,-500.0,0.00020435,2]
[393980241,1763156714126,-500.0,0.00020435,2]
[393980242,1763156714159,-500.0,0.00020435,2]
[393980243,1763156714192,-500.0,0.00020435,2]
[393980244,1763156714228,-500.0,0.00020435,2]
[393980245,1763156714260,-500.0,0.00020435,2]
[393980246,1763156714293,-500.0,0.00020435,2]
[393980247,1763156714326,-163.17996092,0.00020435,2]
[393980248,1763156714481,-336.82003908,0.00020435,2]
[393980249,1763156714519,-500.0,0.00020435,2]
[393980250,1763156714557,-500.0,0.00020435,2]
[393980251,1763156714593,-500.0,0.00020435,2]
[393980252,1763156714741,-500.0,0.00020435,2]
[393980253,1763156714775,-500.0,0.00020435,2]
[393980254,1763156714808,-500.0,0.00020435,2]
[393980255,1763156714842,-500.0,0.00020435,2]
[393980256,1763156714874,-500.0,0.00020435,2]
[393980257,1763156714907,-500.0,0.00020435,2]
[393980258,1763156715139,-500.0,0.00020435,2]
[393980259,1763156715176,-200.0,0.00020435,2]
[393980260,1763156715209,-500.0,0.00020435,2]
[393980261,1763156715236,-500.0,0.00020435,2]
[393980262,1763156715921,-2394.8088385,0.00020435,2]
[393980263,1763156715940,-10000.01,0.00020435,2]
[393980264,1763156715958,-10000.01,0.00020435,2]
[393980265,1763156716124,-10000.01,0.00020435,2]
[393980266,1763156716362,-10000.01,0.00020435,2]
[393980267,1763156716578,-2394.8588385,0.00020435,2]
[393980268,1763156716601,-5210.292323,0.00020435,2]
[393980269,1763156716770,-10000.01,0.00020436,2]
[393980270,1763156716961,-10000.01,0.00020436,2]
[393980271,1763156717210,-2108.9229788,0.00020436,2]
[393980272,1763156717238,-500.0,0.00020473,2]
[393980273,1763156717267,-500.0,0.00020473,2]
[393980274,1763156717300,-150.0,0.00020696,2]
[393980275,1763156717329,-500.0,0.00020709,2]
[393980276,1763156717359,-300.0,0.00020843,2]
[393980277,1763156717390,-300.0,0.00020843,2]
[393980278,1763156717419,-500.0,0.00020983,2]
[393980279,1763156717628,-282.1640424,0.00021021,2]
[393980280,1763156722265,-155.93,0.000197,20]
[393980281,1763156722295,-717.8359576,0.00021021,2]
[393980282,1763156722324,-151.0,0.00021021,2]
[393980283,1763156722352,-151.0,0.00021021,2]
[393980284,1763156722385,-150.0,0.00021595,2]
[393980285,1763156722415,-190.92672128,0.00021699,2]
[393980286,1763156722444,-3004.99300438,0.0002199,2]
[393980287,1763156722678,-956.63863348,0.0002199,2]
[393980288,1763156725119,-151.0,0.00021021,2]
[393980289,1763156725147,-206.6895203,0.00021021,2]
[393980290,1763156725175,-539.0,0.00022,2]
[393980291,1763156725207,-2104.96275857,0.00022217,2]
[393980292,1763156725235,-420.0,0.0002224,2]
[393980293,1763156725266,-400.0,0.00022316,2]
[393980294,1763156725296,-221.03999349,0.00022317,2]
[393980295,1763156725324,-358.01210159,0.00022317,2]
[393980296,1763156725352,-178.677,0.00022317,2]
[393980297,1763156725380,-166.66,0.0002232,2]
[393980298,1763156725562,-507.9272521,0.00022322,2]
[393980299,1763156725575,-10000.01,0.00022322,2]
[393980300,1763156725740,-10000.01,0.00022322,2]
[393980301,1763156725776,-10000.01,0.00022322,2]
[393980302,1763156725817,-10000.01,0.00022322,2]
[393980303,1763156725946,-10000.01,0.00022322,2]
[393980304,1763156726068,-10000.01,0.00022322,2]
[393980305,1763156728411,-10000.01,0.00022322,2]
[393980306,1763156842190,150.0,0.00019062,2]
[393980307,1763156853131,-150.0,0.00020031,2]
[393980308,1763156853153,-500.0,0.00020473,2]
[393980309,1763156853173,-500.0,0.00020473,2]
[393980310,1763156853193,-500.0,0.00020473,2]
[393980311,1763156853213,-504.76898142,0.00020473,2]
[393980312,1763156853237,-150.0,0.00020877,2]
[393980313,1763156853261,-300.0,0.0002102,2]
[393980314,1763156853281,-508.85603202,0.00021021,2]
[393980315,1763156853304,-1004.43111576,0.00021021,2]
[393980316,1763156853328,-13132.4607191,0.00021375,2]
[393980317,1763156853352,-150.0,0.00021785,2]
[393980318,1763156853372,-300.0,0.000223,20]
[393980319,1763156853391,-288.27,0.000223,20]
[393980320,1763156853416,-300.0,0.000223,7]
[393980321,1763156853437,-288.27,0.000223,7]
[393980322,1763156853457,-300.0,0.000223,2]
[393980323,1763156853478,-204.23,0.000223,2]
[393980324,1763156853499,-154.72799544,0.00022321,2]
[393980325,1763156853519,-250.60847111,0.00022321,2]
[393980326,1763156853541,-160.0,0.00022321,2]
[393980327,1763156853693,-500.0,0.00022321,2]
[393980328,1763156853727,-500.0,0.00022321,2]
[393980329,1763156853753,-263.84542232,0.00022321,2]
[393980330,1763156853776,-500.0,0.00022321,2]
[393980331,1763156853800,-500.0,0.00022321,2]
[393980332,1763156853822,-500.0,0.00022321,2]
[393980333,1763156853845,-500.0,0.00022321,2]
[393980334,1763156853868,-500.0,0.00022321,2]
[393980335,1763156853888,-58225.60620883,0.00022322,2]
[393980336,1763156865080,580.0,0.00039089,10]
[393980337,1763156909114,-433.9573748,0.00021101,2]
[393980338,1763156909138,-300.0,0.00022321,2]
[393980339,1763156909164,-761266.39653907,0.00022322,2]
[393980340,1763156909187,-154.74772562,0.00022347,2]
[393980341,1763156909210,-503.89883739,0.00022373,2]
[393980342,1763156909232,-500.0,0.00022373,2]
[393980343,1763156909370,-505.79762792,0.00022373,2]
[393980344,1763156909394,-500.0,0.00022373,2]
[393980345,1763156909418,-500.0,0.00022373,2]
[393980346,1763156909442,-500.0,0.00022373,2]
[393980347,1763156909466,-500.0,0.00022373,2]
[393980348,1763156909488,-500.0,0.00022373,2]
[393980349,1763156909511,-500.0,0.00022373,2]
[393980350,1763156909533,-500.0,0.00022373,2]
[393980351,1763156909556,-500.0,0.00022373,2]
[393980352,1763156909580,-500.81983786,0.00022373,2]
[393980353,1763156909603,-500.0,0.00022373,2]
[393980354,1763156909627,-500.0,0.00022373,2]
[393980355,1763156909650,-500.0,0.00022373,2]
[393980356,1763156909674,-500.0,0.00022373,2]
[393980357,1763156909698,-502.04118689,0.00022373,2]
[393980358,1763156909722,-500.0,0.00022373,2]
[393980359,1763156909746,-500.0,0.00022373,2]
[393980360,1763156909770,-500.0,0.00022373,2]
[393980361,1763156909793,-27832.34087045,0.00022373,2]
[393980362,1763156958137,-150.0,0.00020298,2]
[393980363,1763156958161,-150.0,0.00021264,2]
[393980364,1763156958183,-150.0,0.00022231,2]
[393980365,1763156958203,-326.92320514,0.00022373,2]
[393980366,1763156958223,-151.0,0.000224,6]
[393980367,1763156982130,150.0,0.00019601,2]
[393980368,1763156982688,150.0,0.00020535,2]
[393980369,1763156983101,150.0,0.00021468,2]
[393980370,1763156983544,150.0,0.00022401,2]
[393980371,1763157006884,151.0,0.00039082,30]
[393980372,1763157006971,250.0,0.00039082,30]
[393980373,1763157007008,414.0,0.00039082,30]
[393980374,1763157007036,250.0,0.00039082,30]
[393980375,1763157007065,250.0,0.00039082,30]
[393980376,1763157007092,151.0,0.00039082,30]
[393980377,1763157007614,151.0,0.00039082,120]
[393980378,1763157007648,250.0,0.00039082,120]
[393980379,1763157007678,250.0,0.00039082,120]
[393980380,1763157007714,429.318,0.00039082,120]
[393980381,1763157007745,156.587,0.00039082,120]
[393980382,1763157007792,250.0,0.00039082,120]
[393980383,1763157008093,151.0,0.00039082,30]
[393980384,1763157008245,250.0,0.00039082,30]
[393980385,1763157008305,250.0,0.00039082,30]
[393980386,1763157008337,162.380719,0.00039082,30]
[393980387,1763157008371,250.0,0.00039082,30]
[393980388,1763157008702,151.0,0.00039082,120]
[393980389,1763157008792,445.202766,0.00039082,30]
[393980390,1763157008824,250.0,0.00039082,120]
[393980391,1763157008856,250.0,0.00039082,120]
[393980392,1763157008889,168.3888056,0.00039082,120]
[393980393,1763157009218,250.0,0.00039082,120]
[393980394,1763157009351,250.0,0.00039082,30]
[393980395,1763157009387,151.0,0.00039082,60]
[393980396,1763157009425,461.67526834,0.00039082,120]
[393980397,1763157009457,250.0,0.00039082,60]
[393980398,1763157009487,174.61919141,0.00039082,60]
[393980399,1763157009550,250.0,0.00039082,60]
[393980400,1763157009581,250.0,0.00039082,60]
[393980401,1763157009612,151.0,0.00039082,30]
[393980402,1763157009868,250.0,0.00039082,120]
[393980403,1763157009924,151.0,0.00039082,60]
[393980404,1763157010022,478.75725327,0.00039082,60]
[393980405,1763157010052,250.0,0.00039082,35]
[393980406,1763157010095,181.08010149,0.00039082,35]
[393980407,1763157010228,31378.57336269,0.00039082,120]
[393980408,1763157010259,250.0,0.00039082,35]
[393980409,1763157010294,250.0,0.00039082,35]
[393980410,1763157010454,151.0,0.00039082,120]
[393980411,1763157010492,250.0,0.00039082,30]
[393980412,1763157010647,478.75725327,0.00039082,60]
[393980413,1763157010684,250.0,0.00039082,120]
[393980414,1763157010746,187.78006525,0.00039082,120]
[393980415,1763157010933,250.0,0.00039082,120]
[393980416,1763157011098,250.0,0.00039082,120]
[393980417,1763157011300,250.0,0.00039082,30]
[393980418,1763157011393,250.0,0.00039082,120]
[393980419,1763157011589,194.72792766,0.00039082,30]
[393980420,1763157011712,151.0,0.00039082,30]
[393980421,1763157011743,250.0,0.00039082,30]
[393980422,1763157011773,250.0,0.00039082,60]
[393980423,1763157012022,250.0,0.00039082,120]
[393980424,1763157012052,250.0,0.00039082,30]
[393980425,1763157012226,151.0,0.00039082,30]
[393980426,1763157012257,201.93286099,0.00039082,120]
[393980427,1763157012384,151.0,0.00039082,120]
[393980428,1763157012420,250.0,0.00039082,120]
[393980429,1763157012454,250.0,0.00039082,35]
[393980430,1763157012679,250.0,0.00039082,120]
[393980431,1763157012836,250.0,0.00039082,10]
[393980432,1763157012902,156.587,0.00039082,120]
[393980433,1763157012933,209.40437684,0.00039082,10]
[393980434,1763157013067,151.0,0.00039082,60]
[393980435,1763157013098,250.0,0.00039082,10]
[393980436,1763157013375,250.0,0.00039082,120]
[393980437,1763157013410,151.0,0.00039082,30]
[393980438,1763157013489,250.0,0.00039082,10]
[393980439,1763157013525,151.0,0.00039082,30]
[393980440,1763157013559,250.0,0.00039082,10]
[393980441,1763157013597,162.380719,0.00039082,30]
[393980442,1763157013628,217.15233878,0.00039082,10]
[393980443,1763157013754,250.0,0.00039082,10]
[393980444,1763157013789,151.0,0.00039082,35]
[393980445,1763157013828,250.0,0.00039082,30]
[393980446,1763157013862,151.0,0.00039082,120]
[393980447,1763157014036,250.0,0.00039082,10]
[393980448,1763157014197,217.15233878,0.00039082,10]
[393980449,1763157014259,168.3888056,0.00039082,120]
[393980450,1763157014296,151.0,0.00039082,30]
[393980451,1763157014367,250.0,0.00039082,10]
[393980452,1763157014486,151.0,0.00039082,30]
[393980453,1763157014517,250.0,0.00039082,120]
[393980454,1763157014666,151.0,0.00039082,120]
[393980455,1763157014696,250.0,0.00039082,10]
[393980456,1763157014960,174.61919141,0.00039082,60]
[393980457,1763157015001,250.0,0.00039082,10]
[393980458,1763157015157,151.0,0.00039082,120]
[393980459,1763157015189,250.0,0.00039082,10]
[393980460,1763157015273,250.0,0.00039082,10]
[393980461,1763157015302,151.0,0.00039082,30]
[393980462,1763157015501,181.08010149,0.00039082,35]
[393980463,1763157015647,250.0,0.00039082,10]
[393980464,1763157015807,151.0,0.00039082,60]
[393980465,1763157015848,250.0,0.00039082,10]
[393980466,1763157015897,151.0,0.00039082,120]
[393980467,1763157016143,187.78006525,0.00039082,120]
[393980468,1763157016257,250.0,0.00039082,10]
[393980469,1763157016428,151.0,0.00039082,35]
[393980470,1763157016473,250.0,0.00039082,10]
[393980471,1763157016530,151.0,0.00039082,120]
[393980472,1763157016787,194.72792766,0.00039082,30]
[393980473,1763157016893,250.0,0.00039082,10]
[393980474,1763157017071,151.0,0.00039082,35]
[393980475,1763157017128,250.0,0.00039082,10]
[393980476,1763157017439,201.93286099,0.00039082,120]